bitfinex/quotes_SOLUSD_20240614
["timestamp","ask_amount","ask_price","bid_price","bid_amount"]
[1718372317784,24.9583,148.25,148.21,2.4964]
[1718372318100,7.4875,148.25,148.21,7.4892]
[1718372318482,2.4959,148.25,148.21,14.9785]
[1718372318685,2.4959,148.25,148.22,2.4962]
[1718372318909,24.9571,148.26,148.22,7.4887]
[1718372319288,7.4871,148.26,148.22,7.4887]
[1718372319489,2.4955,148.27,148.23,14.9765]
[1718372319809,2.4954,148.27,148.24,2.4959]
[1718372320109,2.4956,148.26,148.23,2.4959]
[1718372320486,12.4764,148.28,148.24,2.4958]
[1718372320707,22.4575,148.28,148.24,2.4958]
[1718372320891,24.9529,148.28,148.24,7.4877]
[1718372321210,7.486,148.28,148.24,7.4877]
[1718372321386,14.9719,148.28,148.24,2.4958]
[1718372321710,2.4954,148.27,148.24,2.4958]
[1718372322232,24.953,148.28,148.24,7.4876]
[1718372322390,14.0138,148.29,148.25,7.4871]
[1718372322590,27.4857,148.28,148.24,7.4874]
[1718372323710,6.5284,148.29,148.18,18.38]
[1718372323886,0.1,148.29,148.27,2.4953]
[1718372324090,0.1,148.29,148.26,24.955]
[1718372324296,0.1,148.29,148.22,15.5073]
[1718372324614,0.1,148.29,148.28,2.4952]
[1718372324823,0.1,148.29,148.28,7.4857]
[1718372324989,0.1,148.29,148.28,14.9715]
[1718372325492,0.1,148.29,148.28,2.4952]
[1718372325701,0.1,148.29,148.27,24.9535]
[1718372325905,0.1,148.29,148.28,2.4952]
[1718372326104,0.1,148.29,148.28,7.4857]
[1718372326304,0.1,148.29,148.28,24.9526]
[1718372328015,0.1,148.29,148.28,40.9134]
[1718372330415,0.1,148.39,148.36,4.9876]
[1718372330732,0.1,148.39,148.36,2.4938]
[1718372331094,0.1,148.39,148.38,2.4935]
[1718372331299,0.1,148.39,148.38,24.9356]
[1718372336812,0.1,148.39,148.36,18.38]
[1718372336813,0.1,148.39,148.37,4.9873]
[1718372337013,0.1,148.39,148.38,2.4935]
[1718372337213,0.1,148.39,148.38,7.4806]
[1718372337411,0.1,148.39,148.38,2.4935]
[1718372337613,0.1,148.39,148.38,7.4806]
[1718372337822,0.1,148.39,148.38,24.9356]
[1718372338415,0.1,148.39,148.38,7.4806]
[1718372339330,0.1,148.39,148.38,14.9613]
[1718372339929,0.1,148.39,148.36,4.9877]
[1718372340131,0.1,148.39,148.37,14.9623]
[1718372340315,0.1,148.39,148.37,7.4811]
[1718372340510,0.1,148.39,148.38,2.4935]
[1718372340712,0.1,148.39,148.38,24.9356]
[1718372341235,0.1,148.39,148.38,7.4806]
[1718372341440,0.1,148.39,148.38,2.4935]
[1718372341649,0.1,148.39,148.38,24.9356]
[1718372343444,0.1,148.39,148.32,24.5433]
[1718372343633,7.5805,148.39,148.35,14.9642]
[1718372343944,0.1,148.39,148.32,6.1633]
[1718372344121,0.1,148.39,148.37,7.481]
[1718372344318,0.1,148.39,148.37,2.4937]
[1718372344719,0.1,148.39,148.36,22.4444]
[1718372344920,0.1,148.39,148.36,24.9381]
[1718372345122,0.1,148.39,148.37,2.4937]
[1718372345627,0.1,148.39,148.36,7.4815]
[1718372345832,0.1,148.39,148.36,7.4816]
[1718372346039,0.1,148.39,148.38,24.9356]
[1718372346227,0.1,148.39,148.37,24.9365]
[1718372346642,0.1,148.39,148.37,7.4809]
[1718372346842,0.1,148.39,148.37,2.4937]
[1718372347141,0.1,148.39,148.37,19.9494]
[1718372347349,0.1,148.39,148.37,2.4936]
[1718372347744,0.1,148.39,148.38,2.4935]
[1718372347923,0.1,148.39,148.38,24.9356]
[1718372351127,0.1,148.39,148.38,43.3156]
[1718372351432,0.1,148.39,148.38,85.6266]
[1718372352350,0.1,148.39,148.38,85.7966]
[1718372353332,7.5752,148.49,148.45,2.4923]
[1718372353650,7.5752,148.49,148.45,7.477]
[1718372353961,2.5917,148.49,148.45,14.9542]
[1718372354254,0.1,148.49,148.39,20.0]
[1718372354439,0.1,148.49,148.47,7.4759]
[1718372354637,0.1,148.49,148.45,22.4311]
[1718372354824,2.5918,148.49,148.46,2.4922]
[1718372355024,2.5918,148.49,148.45,22.4311]
[1718372355229,2.5918,148.49,148.45,24.9234]
[1718372355535,2.5918,148.49,148.45,22.4311]
[1718372355849,22.5258,148.49,148.45,2.4922]
[1718372356056,22.5258,148.49,148.45,14.9539]
[1718372356057,2.5917,148.49,148.45,14.9539]
[1718372356243,7.5752,148.49,148.45,14.9539]
[1718372356568,2.5917,148.49,148.46,2.4922]
[1718372356732,0.1,148.49,148.46,14.9533]
[1718372357428,0.1,148.49,148.39,20.0]
[1718372357631,0.1,148.49,148.48,24.919]
[1718372358941,0.1,148.49,148.43,7.4782]
[1718372359150,7.4765,148.47,148.43,7.478]
[1718372359351,2.4921,148.47,148.43,7.478]
[1718372359552,2.4924,148.45,148.41,2.493]
[1718372359760,24.923,148.46,148.42,2.4928]
[1718372359960,22.4305,148.46,148.41,22.4373]
[1718372360263,7.81073333,148.45,148.41,2.493]
[1718372360434,0.33333333,148.45,148.36,6.2296]
[1718372360633,0.33333333,148.45,148.44,2.4925]
[1718372360862,0.33333333,148.45,148.43,7.4779]
[1718372361043,0.33333333,148.45,148.43,2.4926]
[1718372361241,7.81073333,148.45,148.41,2.493]
[1718372361446,0.33333333,148.45,148.36,6.2296]
[1718372361649,0.33333333,148.45,148.43,2.4926]
[1718372362055,0.33333333,148.45,148.42,24.9282]
[1718372362248,0.33333333,148.45,148.41,2.4929]
[1718372362561,0.33333333,148.45,148.41,7.4791]
[1718372362873,0.33333333,148.45,148.41,14.9583]
[1718372363054,0.33333333,148.45,148.42,2.4929]
[1718372363241,2.82573333,148.45,148.41,7.479]
[1718372363446,7.81053333,148.45,148.41,2.4929]
[1718372364490,0.33333333,148.45,148.42,2.4928]
[1718372364977,7.81053333,148.45,148.4,22.4385]
[1718372365155,15.28773333,148.45,148.4,24.9316]
[1718372365351,15.28773333,148.45,148.41,2.493]
[1718372365567,14.9555,148.44,148.39,22.4398]
[1718372365871,7.4778,148.44,148.4,2.4932]
[1718372366041,0.33333333,148.43,148.4,2.4932]
[1718372366238,0.33333333,148.43,148.39,12.4668]
[1718372366469,2.82603333,148.43,148.39,14.96]
[1718372366765,4.9864,148.41,148.36,4.9878]
[1718372366942,22.4384,148.41,148.36,7.4815]
[1718372367139,2.82653333,148.4,148.36,14.9632]
[1718372367360,0.33333333,148.4,148.37,2.4937]
[1718372367558,2.82653333,148.4,148.36,24.9389]
[1718372367755,2.82653333,148.4,148.34,24.9417]
[1718372367756,24.9345,148.39,148.34,24.9417]
[1718372367957,6.542,148.42,148.3,15.6654]
[1718372368153,0.33333333,148.38,148.3,15.6654]
[1718372368366,5.32053333,148.38,148.33,14.9657]
[1718372368547,0.33333333,148.38,148.35,2.494]
[1718372368752,0.33333333,148.38,148.35,7.4821]
[1718372369146,0.33333333,148.38,148.35,2.494]
[1718372369369,0.33333333,148.38,148.37,2.4937]
[1718372369565,0.33333333,148.38,148.36,7.4815]
[1718372369752,0.33333333,148.38,148.37,14.9624]
[1718372369948,0.33333333,148.38,148.35,9.9763]
[1718372370176,0.33333333,148.38,148.36,14.9633]
[1718372370847,0.33333333,148.38,148.36,7.4816]
[1718372371247,0.33333333,148.38,148.34,7.4824]
[1718372371461,0.33333333,148.38,148.34,22.4479]
[1718372371675,0.33333333,148.38,148.37,24.9374]
[1718372371973,0.33333333,148.38,148.37,7.4812]
[1718372372155,0.33333333,148.38,148.37,2.4937]
[1718372372477,0.33333333,148.38,148.36,7.4816]
[1718372372849,0.33333333,148.38,148.37,24.9374]
[1718372373466,0.33333333,148.38,148.37,7.4812]
[1718372373665,0.33333333,148.38,148.37,24.9374]
[1718372375676,0.33333333,148.38,148.37,7.4812]
[1718372375878,0.33333333,148.38,148.37,24.9374]
[1718372377668,0.33333333,148.38,148.37,7.4812]
[1718372377970,0.33333333,148.38,148.37,24.9374]
[1718372386607,0.33333333,148.38,148.37,2.4937]
[1718372386806,0.33333333,148.38,148.36,24.938]
[1718372386985,0.33333333,148.38,148.34,4.9883]
[1718372387304,0.33333333,148.38,148.35,2.494]
[1718372387490,0.33333333,148.38,148.36,2.4939]
[1718372387691,0.33333333,148.38,148.37,2.4937]
[1718372387891,0.33333333,148.38,148.36,7.4815]
[1718372388487,0.33333333,148.38,148.36,2.4937]
[1718372388715,0.33333333,148.38,148.35,24.9398]
[1718372389009,0.33333333,148.38,148.36,2.4939]
[1718372389204,0.33333333,148.38,148.35,24.9401]
[1718372389428,15.29503333,148.38,148.33,22.4493]
[1718372389708,15.29503333,148.38,148.32,4.9891]
[1718372389709,4.9877,148.37,148.32,4.9891]
[1718372389920,7.4815,148.37,148.33,2.4944]
[1718372390088,0.33333333,148.36,148.33,2.4944]
[1718372390283,2.82723333,148.36,148.32,14.9674]
[1718372390515,0.33333333,148.36,148.32,14.9674]
[1718372390694,0.33333333,148.36,148.33,2.4944]
[1718372390900,2.82723333,148.36,148.32,7.4837]
[1718372391099,2.82723333,148.36,148.33,2.4944]
[1718372391100,0.33333333,148.36,148.33,2.4944]
[1718372391404,0.33333333,148.36,148.32,17.462]
[1718372391405,2.82723333,148.36,148.32,17.462]
[1718372391719,2.82723333,148.36,148.32,7.4836]
[1718372392097,5.32113333,148.36,148.31,22.4519]
[1718372392302,25.27263333,148.36,148.31,24.9465]
[1718372392717,7.81513333,148.36,148.32,2.4945]
[1718372392912,2.82733333,148.36,148.32,7.4836]
[1718372393113,2.4941,148.35,148.31,2.4947]
[1718372393295,25.27323333,148.36,148.31,7.4842]
[1718372393491,47.4941,148.35,148.31,7.4842]
[1718372393697,45.0,148.35,148.31,22.4527]
[1718372393892,45.0,148.35,148.31,24.9473]
[1718372394103,0.33333333,148.34,148.31,19.9573]
[1718372394304,0.33333333,148.34,148.31,2.4946]
[1718372394507,0.33333333,148.34,148.31,14.9682]
[1718372394826,0.33333333,148.34,148.32,2.4945]
[1718372395200,0.33333333,148.34,148.31,24.9472]
[1718372395612,0.33333333,148.34,148.32,2.4945]
[1718372396128,0.33333333,148.34,148.32,7.4836]
[1718372396327,0.33333333,148.34,148.32,2.4945]
[1718372396527,0.33333333,148.34,148.32,7.4837]
[1718372396826,0.33333333,148.34,148.32,2.4945]
[1718372397525,0.33333333,148.34,148.33,14.9665]
[1718372397701,0.33333333,148.34,148.33,24.9442]
[1718372403032,0.33333333,148.34,148.33,40.3982]
[1718372404726,3.333e-05,148.34,148.33,40.9082]
[1718372404912,15.6317,148.45,148.41,22.4371]
[1718372405115,23.1089,148.45,148.41,7.4788]
[1718372405428,23.1089,148.45,148.41,2.4929]
[1718372405629,38.0634,148.45,148.41,2.493]
[1718372405934,2.4931,148.41,148.37,14.9622]
[1718372406118,22.4374,148.42,148.38,2.4935]
[1718372406119,24.9304,148.42,148.38,2.4935]
[1718372406322,2.4931,148.41,148.37,24.937]
[1718372406520,2.4931,148.41,148.37,14.9622]
[1718372406736,24.9304,148.42,148.38,2.4935]
[1718372407041,24.9304,148.42,148.37,22.4436]
[1718372407042,2.493,148.41,148.37,17.456]
[1718372407220,24.9304,148.42,148.38,2.4935]
[1718372407544,7.4791,148.42,148.38,7.4806]
[1718372407840,2.493,148.42,148.38,7.4806]
[1718372408038,7.4789,148.42,148.38,2.4935]
[1718372408337,14.9577,148.42,148.38,2.4935]
[1718372408537,2.4934,148.39,148.35,24.9397]
[1718372408711,2.4934,148.39,148.35,2.4939]
[1718372409039,22.4398,148.4,148.35,22.4464]
[1718372409210,24.9331,148.4,148.36,2.4939]
[1718372409537,24.9317,148.41,148.37,2.4937]
[1718372409916,24.9317,148.41,148.36,22.4449]
[1718372409917,2.4932,148.4,148.36,24.9386]
[1718372410311,7.4795,148.41,148.37,2.4937]
[1718372410524,17.451,148.42,148.31,6.4292]
[1718372410525,63.38,148.44,148.31,6.4292]
[1718372410721,20.0,148.43,148.4,2.4931]
[1718372411123,7.4777,148.44,148.4,2.4931]
[1718372411325,22.4332,148.44,148.39,22.44]
[1718372411538,2.4927,148.43,148.39,7.4799]
[1718372415234,24.93,148.42,148.37,22.4437]
[1718372415539,7.4789,148.42,148.38,2.4935]
[1718372415739,47.4928,148.43,148.39,2.4934]
[1718372416069,7.4779,148.44,148.4,2.4932]
[1718372416229,20.0,148.43,148.4,2.4932]
[1718372416633,20.0,148.43,148.39,24.9332]
[1718372416853,22.4927,148.43,148.39,24.9332]
[1718372417265,22.4927,148.43,148.39,22.4399]
[1718372417565,22.4927,148.43,148.39,7.4799]
[1718372417733,22.4927,148.43,148.39,14.9601]
[1718372417938,20.0,148.43,148.4,2.4932]
[1718372418277,22.4366,148.42,148.38,2.4935]
[1718372418478,7.479,148.42,148.38,2.4935]
[1718372418847,2.493,148.42,148.38,14.9613]
[1718372419044,42.4356,148.43,148.38,12.4678]
[1718372419376,44.9284,148.43,148.38,24.9355]
[1718372419579,2.4929,148.42,148.38,7.4805]
[1718372420071,2.493,148.42,148.38,7.4806]
[1718372420260,44.9285,148.43,148.38,14.9613]
[1718372420458,27.4786,148.43,148.39,2.4933]
[1718372420661,22.4929,148.43,148.39,7.4801]
[1718372420861,20.0,148.43,148.39,4.9868]
[1718372421075,27.4782,148.43,148.39,2.4933]
[1718372421249,22.4366,148.42,148.37,14.9622]
[1718372421454,2.4931,148.41,148.37,14.9622]
[1718372422059,2.4931,148.41,148.36,9.9752]
[1718372422060,12.4666,148.4,148.35,24.9403]
[1718372422288,22.4398,148.4,148.35,24.9403]
[1718372422450,2.4934,148.4,148.36,7.4816]
[1718372422789,7.4799,148.4,148.36,2.4938]
[1718372422963,2.4934,148.4,148.36,7.4816]
[1718372423589,24.9381,148.37,148.33,2.4944]
[1718372423870,24.9381,148.37,148.33,2.4943]
[1718372423871,7.4814,148.37,148.33,2.4943]
[1718372424379,7.4813,148.37,148.33,2.4943]
[1718372424579,22.4441,148.37,148.32,24.9451]
[1718372424753,2.4939,148.36,148.32,7.4835]
[1718372424955,2.4941,148.35,148.31,4.9893]
[1718372425153,7.4819,148.36,148.31,24.9467]
[1718372425350,14.9637,148.36,148.31,24.9467]
[1718372425663,7.4819,148.36,148.32,2.4946]
[1718372426159,2.494,148.36,148.32,7.4838]
[1718372426359,2.4941,148.35,148.31,7.4839]
[1718372426568,24.9396,148.36,148.31,14.9682]
[1718372426778,7.482,148.36,148.32,2.4945]
[1718372426980,7.4823,148.35,148.31,2.4946]
[1718372427155,2.4941,148.35,148.31,2.4946]
[1718372427359,7.4821,148.36,148.32,2.4945]
[1718372427670,14.9639,148.36,148.31,14.9684]
[1718372427866,12.4699,148.36,148.31,14.9683]
[1718372428084,7.4821,148.36,148.32,2.4946]
[1718372428556,9.53301722,148.38,148.34,2.4942]
[1718372428760,20.0,148.37,148.34,2.4942]
[1718372428955,20.0,148.37,148.33,22.4487]
[1718372428956,22.4937,148.37,148.33,2.4943]
[1718372429460,27.4812,148.37,148.33,2.4943]
[1718372429660,20.0,148.37,148.33,7.4831]
[1718372429965,22.4937,148.37,148.33,7.4831]
[1718372430290,22.4937,148.37,148.33,2.4943]
[1718372430475,20.0,148.37,148.33,14.9664]
[1718372430982,20.0,148.37,148.33,7.4831]
[1718372431277,34.9625,148.37,148.32,24.945]
[1718372431482,27.4812,148.37,148.33,2.4943]
[1718372431708,15.0303,148.39,148.26,6.1069]
[1718372431854,9.5387236,148.42,148.36,7.4815]
[1718372431855,2.4931,148.41,148.36,7.4815]
[1718372432059,2.4931,148.41,148.37,2.4936]
[1718372432359,2.4933,148.4,148.36,2.4938]
[1718372432558,4.9869,148.39,148.35,2.494]
[1718372432755,24.9335,148.4,148.36,2.4939]
[1718372432984,24.9335,148.4,148.35,14.9642]
[1718372433184,7.48,148.4,148.36,2.4939]
[1718372433393,2.4934,148.39,148.35,24.9405]
[1718372433706,24.9315,148.41,148.36,14.9633]
[1718372433863,7.4795,148.41,148.37,2.4937]
[1718372434368,2.4932,148.4,148.36,2.4937]
[1718372434571,7.4797,148.4,148.36,2.4937]
[1718372434758,19.9464,148.4,148.32,6.1973]
[1718372434963,2.4936,148.38,148.34,2.4942]
[1718372435495,2.4936,148.38,148.34,7.4826]
[1718372435797,69.9351,148.39,148.34,14.9653]
[1718372435986,69.9351,148.39,148.34,14.9654]
[1718372436167,52.4805,148.39,148.35,2.494]
[1718372436594,57.4673,148.39,148.34,24.9423]
[1718372436764,2.4936,148.38,148.34,7.4825]
[1718372436964,2.4935,148.39,148.35,7.4821]
[1718372437895,24.9333,148.4,148.36,2.4939]
[1718372438298,14.9605,148.39,148.34,24.9417]
[1718372438478,24.9344,148.39,148.34,14.9651]
[1718372438790,24.9344,148.39,148.35,2.494]
[1718372438965,7.4803,148.39,148.35,2.494]
[1718372439460,17.4565,148.37,148.33,2.4944]
[1718372439668,24.9382,148.37,148.32,12.4729]
[1718372439870,22.4443,148.37,148.32,22.4512]
[1718372440077,4.988,148.36,148.31,22.4523]
[1718372440273,2.4941,148.35,148.31,7.4841]
[1718372440571,7.4823,148.35,148.31,2.4946]
[1718372440773,2.4939,148.36,148.32,2.4945]
[1718372440966,6.12,148.35,148.32,2.4945]
[1718372441177,6.12,148.35,148.32,24.9455]
[1718372441383,6.12,148.35,148.32,7.4834]
[1718372441586,6.12,148.35,148.32,2.4944]
[1718372442180,6.12,148.35,148.32,2.4945]
[1718372442389,6.12,148.35,148.32,7.4836]
[1718372443089,2.4939,148.36,148.32,7.4836]
[1718372443292,52.4817,148.36,148.32,2.4945]
[1718372443519,59.9635,148.36,148.31,24.9465]
[1718372443865,52.4817,148.36,148.32,2.4945]
[1718372444100,45.0,148.36,148.32,7.4836]
[1718372444269,45.0,148.36,148.32,14.9673]
[1718372444676,45.0,148.36,148.32,22.4511]
[1718372444984,47.4939,148.36,148.32,24.9456]
[1718372445286,47.4939,148.36,148.32,7.4836]
[1718372445491,47.4939,148.36,148.32,2.4945]
[1718372445707,59.9636,148.36,148.31,24.9467]
[1718372445867,52.4818,148.36,148.32,2.4945]
[1718372446277,52.4818,148.36,148.31,22.4521]
[1718372446278,59.9636,148.36,148.31,24.9467]
[1718372446485,52.4818,148.36,148.32,2.4945]
[1718372446703,2.4941,148.35,148.31,24.9467]
[1718372447078,69.9394,148.36,148.31,17.4627]
[1718372447277,69.9394,148.36,148.31,24.9469]
[1718372447501,47.494,148.36,148.32,2.4945]
[1718372447689,52.4818,148.36,148.32,2.4945]
[1718372448001,7.4818,148.36,148.28,6.5471]
[1718372448206,14.9636,148.36,148.31,14.9681]
[1718372448411,7.4818,148.36,148.32,2.4945]
[1718372448580,2.494,148.36,148.32,2.4945]
[1718372448777,7.03440164,148.38,148.35,17.4584]
[1718372449104,4.9859,148.42,148.37,4.9874]
[1718372449400,2.4935,148.39,148.35,2.494]
[1718372449577,2.4935,148.39,148.35,7.4821]
[1718372449995,7.4803,148.39,148.35,2.494]
[1718372450191,2.4935,148.39,148.35,2.494]
[1718372450401,2.4936,148.38,148.34,7.4825]
[1718372450604,22.4399,148.4,148.35,14.9642]
[1718372450802,2.4932,148.41,148.37,7.4811]
[1718372451116,20.0,148.42,148.38,22.4419]
[1718372451277,2.4931,148.41,148.37,7.4808]
[1718372451711,27.4788,148.42,148.38,2.4935]
[1718372451914,22.4929,148.42,148.38,7.4806]
[1718372452879,35.6763,148.43,148.39,2.4934]
[1718372453086,18.2264,148.43,148.39,2.4934]
[1718372453281,15.7336,148.43,148.34,6.3857]
[1718372453483,18.2263,148.43,148.39,12.4669]
[1718372453705,15.7336,148.43,148.39,14.9602]
[1718372453877,23.2119,148.43,148.39,2.4933]
[1718372454081,23.2119,148.43,148.34,6.3857]
[1718372454082,4.9859,148.42,148.37,4.9873]
[1718372454309,22.4366,148.42,148.37,24.937]
[1718372454490,7.4789,148.42,148.38,2.4935]
[1718372456787,2.493,148.42,148.38,2.4935]
[1718372456988,7.4788,148.42,148.38,2.4935]
[1718372457191,7.4788,148.42,148.38,7.4806]
[1718372457192,2.493,148.42,148.38,7.4806]
[1718372457699,2.493,148.42,148.38,2.4935]
[1718372458011,7.4789,148.42,148.38,2.4935]
[1718372458211,2.493,148.41,148.37,24.9369]
[1718372458397,22.4364,148.42,148.37,24.9369]
[1718372458709,24.9294,148.42,148.38,2.4935]
[1718372458908,24.9294,148.42,148.37,24.9369]
[1718372459113,7.4789,148.42,148.38,2.4935]
[1718372459300,30.6907,148.43,148.39,2.4934]
[1718372459487,18.2265,148.43,148.39,7.4802]
[1718372460196,38.1684,148.43,148.38,22.4419]
[1718372460402,7.4783,148.43,148.39,2.4933]
[1718372460693,22.4349,148.43,148.38,24.9351]
[1718372460894,24.9277,148.43,148.39,2.4934]
[1718372461094,7.4787,148.42,148.38,2.4934]
[1718372461491,14.9574,148.42,148.37,24.9364]
[1718372461998,7.4787,148.42,148.38,2.4935]
[1718372462318,7.4787,148.42,148.38,7.4806]
[1718372462319,2.4929,148.42,148.38,7.4806]
[1718372462614,2.4929,148.42,148.38,2.4935]
[1718372462615,7.4787,148.42,148.38,2.4935]
[1718372462910,2.4929,148.42,148.38,7.4806]
[1718372463209,14.9558,148.44,148.39,14.9601]
[1718372463444,7.03847163,148.46,148.41,2.493]
[1718372463445,9.9691,148.46,148.41,2.493]
[1718372463611,6.11,148.43,148.4,24.9318]
[1718372463791,6.11,148.42,148.4,2.4932]
[1718372464500,6.11,148.42,148.39,24.9333]
[1718372465122,6.11,148.42,148.4,2.4932]
[1718372465809,7.477,148.46,148.41,2.493]
[1718372466122,8.6024,148.45,148.41,14.9578]
[1718372466300,6.11,148.45,148.41,14.9581]
[1718372466494,6.11,148.45,148.42,2.4929]
[1718372466912,8.6024,148.45,148.41,24.9303]
[1718372467208,6.11,148.45,148.41,24.9303]
[1718372467512,6.11,148.45,148.41,22.4374]
[1718372467718,6.11,148.45,148.42,2.4929]
[1718372468014,8.6024,148.45,148.41,7.4789]
[1718372468404,4.9846,148.46,148.41,4.986]
[1718372468600,2.4923,148.46,148.42,7.4785]
[1718372468807,8.6022,148.46,148.42,14.9572]
[1718372469108,46.8923,148.47,148.42,24.9287]
[1718372469307,31.0327,148.46,148.42,2.4929]
[1718372469505,28.5404,148.46,148.41,22.437]
[1718372469713,31.0327,148.46,148.42,2.4929]
[1718372469902,6.11,148.45,148.42,2.4929]
[1718372470232,15.8607,148.47,148.43,2.4927]
[1718372470233,40.7822,148.47,148.43,2.4927]
[1718372470406,8.6022,148.46,148.42,7.4785]
[1718372470609,6.11,148.46,148.43,2.4927]
[1718372470806,6.11,148.46,148.42,22.436]
[1718372471022,6.11,148.46,148.43,7.478]
[1718372471525,6.11,148.46,148.43,2.4926]
[1718372471697,8.6022,148.46,148.42,24.9285]
[1718372471891,6.11,148.46,148.43,7.4782]
[1718372472631,8.6023,148.46,148.42,24.9285]
[1718372473289,8.6023,148.46,148.42,7.4783]
[1718372473497,8.6023,148.46,148.42,14.957]
[1718372473719,6.11,148.46,148.43,2.4927]
[1718372473907,6.11,148.44,148.41,2.493]
[1718372474821,6.11,148.44,148.42,2.4929]
[1718372474991,17.4462,148.46,148.42,14.9573]
[1718372474992,6.11,148.45,148.42,14.9573]
[1718372475299,6.11,148.45,148.43,2.4927]
[1718372475495,15.8607,148.47,148.43,22.4347]
[1718372475818,6.11,148.46,148.43,24.9273]
[1718372476294,22.4279,148.48,148.43,22.4347]
[1718372476494,6.11,148.47,148.44,2.4925]
[1718372477495,8.602,148.47,148.43,2.4926]
[1718372477695,6.11,148.47,148.44,2.4925]
[1718372478035,8.602,148.47,148.43,24.927]
[1718372478401,13.5861,148.47,148.43,2.4926]
[1718372478816,13.5861,148.47,148.43,7.478]
[1718372479019,2.4922,148.46,148.42,24.928]
[1718372479213,31.0309,148.47,148.43,2.4927]
[1718372479412,11.0941,148.47,148.43,4.9855]
[1718372479609,13.5862,148.47,148.43,2.4926]
[1718372479818,21.0624,148.47,148.43,2.4926]
[1718372480301,0.33336667,148.46,148.43,2.4926]
[1718372480507,0.33336667,148.46,148.43,14.9561]
[1718372480705,0.33336667,148.46,148.43,7.4779]
[1718372481619,0.33336667,148.46,148.45,24.924]
[1718372482123,0.33336667,148.46,148.45,2.4924]
[1718372483127,0.33336667,148.46,148.45,7.4772]
[1718372483328,0.33336667,148.46,148.45,2.4924]
[1718372484138,0.33336667,148.46,148.45,14.9544]
[1718372485311,0.33336667,148.46,148.45,24.924]
[1718372487529,0.33336667,148.46,148.44,2.4924]
[1718372487731,0.33336667,148.46,148.44,7.4775]
[1718372488227,0.33336667,148.46,148.45,2.4924]
[1718372489838,0.33336667,148.46,148.45,7.4772]
[1718372490316,6.44336667,148.46,148.44,7.4775]
[1718372490511,6.44336667,148.46,148.44,2.4924]
[1718372490711,6.44336667,148.46,148.43,24.9265]
[1718372490936,6.44336667,148.46,148.44,2.4925]
[1718372491132,0.33336667,148.46,148.4,4.9863]
[1718372491331,6.11,148.42,148.36,6.534]
[1718372491523,6.11,148.41,148.38,4.987]
[1718372491737,6.11,148.41,148.37,9.9746]
[1718372491738,0.33336667,148.41,148.4,7.4797]
[1718372491908,0.33336667,148.41,148.4,24.9324]
[1718372492717,0.33336667,148.41,148.39,22.4398]
[1718372492916,0.33336667,148.41,148.4,7.4797]
[1718372493130,0.33336667,148.41,148.4,24.9324]
[1718372494557,0.33336667,148.41,148.4,9.9729]
[1718372494726,0.33336667,148.41,148.4,7.4797]
[1718372497543,0.33336667,148.41,148.4,2.4932]
[1718372497731,0.33336667,148.41,148.4,7.4797]
[1718372498246,0.33336667,148.41,148.4,24.9324]
[1718372500557,6.44336667,148.41,148.37,24.9366]
[1718372500756,6.11,148.4,148.38,2.4935]
[1718372501069,6.11,148.4,148.38,14.9612]
[1718372501358,0.33336667,148.39,148.38,24.9355]
[1718372504129,0.33336667,148.39,148.38,7.4805]